fUST/lending_fUST_20251114
["ID","MTS","AMOUNT","RATE_DAILY","PERIOD"]
[393934558,1763107832931,-500.0,0.0002992,2]
[393934560,1763107832940,-500.0,0.0002992,2]
[393934562,1763107832949,-500.0,0.0002992,2]
[393934564,1763107832958,-740.41367323,0.0002992,2]
[393934566,1763107832967,-500.0,0.0002992,2]
[393934568,1763107832976,-500.0,0.0002992,2]
[393934570,1763107832985,-740.41367323,0.0002992,2]
[393934572,1763107832996,-500.0,0.0002992,2]
[393934574,1763107833005,-740.41367323,0.0002992,2]
[393934576,1763107833014,-500.0,0.0002992,2]
[393934578,1763107833023,-500.0,0.0002992,2]
[393934580,1763107833033,-500.0,0.0002992,2]
[393934582,1763107833043,-500.0,0.0002992,2]
[393934584,1763107833053,-740.41367323,0.0002992,2]
[393934586,1763107833063,-500.0,0.0002992,2]
[393934588,1763107833073,-500.0,0.0002992,2]
[393934590,1763107833082,-740.41367323,0.0002992,2]
[393934592,1763107833092,-500.0,0.0002992,2]
[393934594,1763107833102,-740.41367323,0.0002992,2]
[393934596,1763107833111,-500.0,0.0002992,2]
[393934598,1763107833121,-500.0,0.0002992,2]
[393934600,1763107833130,-740.41367323,0.0002992,2]
[393934602,1763107833140,-500.0,0.0002992,2]
[393934604,1763107833149,-500.0,0.0002992,2]
[393934606,1763107833158,-740.41367323,0.0002992,2]
[393934608,1763107833168,-500.0,0.0002992,2]
[393934610,1763107833177,-500.0,0.0002992,2]
[393934612,1763107833186,-740.41367323,0.0002992,2]
[393934614,1763107833195,-500.0,0.0002992,2]
[393934616,1763107833204,-500.0,0.0002992,2]
[393934618,1763107833213,-448.13033563,0.0002992,2]
[393934620,1763107833222,-740.41367323,0.0002992,2]
[393934622,1763107833231,-500.0,0.0002992,2]
[393934624,1763107833241,-500.0,0.0002992,2]
[393934626,1763107833250,-500.0,0.0002992,2]
[393934628,1763107833259,-740.41367323,0.0002992,2]
[393934630,1763107833269,-500.0,0.0002992,2]
[393934632,1763107833279,-740.41367323,0.0002992,2]
[393934634,1763107833288,-500.0,0.0002992,2]
[393934636,1763107833297,-740.41367323,0.0002992,2]
[393934638,1763107833311,-500.0,0.0002992,2]
[393934640,1763107833321,-500.0,0.0002992,2]
[393934642,1763107833331,-740.41367323,0.0002992,2]
[393934644,1763107833340,-740.41367323,0.0002992,2]
[393934646,1763107833351,-740.41367323,0.0002992,2]
[393934648,1763107833361,-740.41367323,0.0002992,2]
[393934650,1763107833371,-740.41367323,0.0002992,2]
[393934652,1763107833380,-740.41367323,0.0002992,2]
[393934654,1763107833391,-740.41367323,0.0002992,2]
[393934656,1763107833400,-740.41367323,0.0002992,2]
[393934658,1763107833410,-740.41367323,0.0002992,2]
[393934660,1763107833420,-500.0,0.0002992,2]
[393934662,1763107833430,-500.0,0.0002992,2]
[393934664,1763107833439,-740.41367323,0.0002992,2]
[393934666,1763107833448,-740.41367323,0.0002992,2]
[393934668,1763107833458,-740.41367323,0.0002992,2]
[393934670,1763107833468,-740.41367323,0.0002992,2]
[393934672,1763107833477,-740.41367323,0.0002992,2]
[393934674,1763107833487,-740.41367323,0.0002992,2]
[393934676,1763107833497,-740.41367323,0.0002992,2]
[393934678,1763107833507,-740.41367323,0.0002992,2]
[393934680,1763107833516,-740.41367323,0.0002992,2]
[393934682,1763107833525,-740.41367323,0.0002992,2]
[393934684,1763107833535,-740.41367323,0.0002992,2]
[393934686,1763107833544,-740.41367323,0.0002992,2]
[393934688,1763107833553,-740.41367323,0.0002992,2]
[393934690,1763107833562,-740.41367323,0.0002992,2]
[393934693,1763107833572,-740.41367323,0.0002992,2]
[393934694,1763107833581,-740.41367323,0.0002992,2]
[393934697,1763107833590,-740.41367323,0.0002992,2]
[393934699,1763107833599,-4804.21182102,0.0002992,2]
[393934700,1763107833608,-4804.21182102,0.0002992,2]
[393934703,1763107833618,-4804.21182102,0.0002992,2]
[393934704,1763107833627,-4804.21182102,0.0002992,2]
[393934707,1763107833636,-4804.21182102,0.0002992,2]
[393934709,1763107833645,-4804.21182102,0.0002992,2]
[393934711,1763107833654,-4804.21182102,0.0002992,2]
[393934712,1763107833663,-4804.21182102,0.0002992,2]
[393934715,1763107833672,-4804.21182102,0.0002992,2]
[393934716,1763107833681,-4804.21182102,0.0002992,2]
[393934719,1763107833692,-4804.21182102,0.0002992,2]
[393934721,1763107833701,-4804.21182102,0.0002992,2]
[393934723,1763107833711,-4804.21182102,0.0002992,2]
[393934725,1763107833720,-4804.21182102,0.0002992,2]
[393934727,1763107833730,-4804.21182102,0.0002992,2]
[393934729,1763107833740,-4804.21182102,0.0002992,2]
[393934731,1763107833749,-4804.21182102,0.0002992,2]
[393934732,1763107833758,-4804.21182102,0.0002992,2]
[393934734,1763107833767,-4804.21182102,0.0002992,2]
[393934736,1763107833777,-4804.21182102,0.0002992,2]
[393934738,1763107833786,-4804.21182102,0.0002992,2]
[393934741,1763107833796,-4804.21182102,0.0002992,2]
[393934742,1763107833805,-4804.21182102,0.0002992,2]
[393934744,1763107833815,-4804.21182102,0.0002992,2]
[393934746,1763107833824,-4804.21182102,0.0002992,2]
[393934749,1763107833833,-4804.21182102,0.0002992,2]
[393934751,1763107833843,-4804.21182102,0.0002992,2]
[393934752,1763107833852,-4804.21182102,0.0002992,2]
[393934755,1763107833861,-4804.21182102,0.0002992,2]
[393934756,1763107833870,-4804.21182102,0.0002992,2]
[393934759,1763107833880,-4804.21182102,0.0002992,2]
[393934760,1763107833889,-4804.21182102,0.0002992,2]
[393934762,1763107833899,-499.99999999,0.0002992,2]
[393934764,1763107833908,-500.0,0.0002992,2]
[393934766,1763107833918,-500.0,0.0002992,2]
[393934769,1763107833927,-500.0,0.0002992,2]
[393934770,1763107833936,-500.0,0.0002992,2]
[393934773,1763107833946,-500.0,0.0002992,2]
[393934774,1763107833955,-500.0,0.0002992,2]
[393934776,1763107833965,-500.0,0.0002992,2]
[393934778,1763107833974,-500.0,0.0002992,2]
[393934779,1763107833984,-446.5480879,0.0002992,2]
[393934781,1763107833997,-500.0,0.0002992,2]
[393934783,1763107834007,-500.0,0.0002992,2]
[393934784,1763107834017,-310.86203156,0.0002992,2]
[393934785,1763107834026,-500.0,0.0002992,2]
[393934786,1763107834036,-500.0,0.0002992,2]
[393934787,1763107834046,-500.0,0.0002992,2]
[393934788,1763107834055,-500.0,0.0002992,2]
[393934789,1763107834065,-500.0,0.0002992,2]
[393934790,1763107834075,-500.0,0.0002992,2]
[393934791,1763107834084,-500.0,0.0002992,2]
[393934792,1763107834094,-500.0,0.0002992,2]
[393934793,1763107834103,-500.0,0.0002992,2]
[393934794,1763107834113,-500.0,0.0002992,2]
[393934795,1763107834123,-500.0,0.0002992,2]
[393934796,1763107834132,-500.0,0.0002992,2]
[393934797,1763107834142,-500.0,0.0002992,2]
[393934798,1763107834151,-500.0,0.0002992,2]
[393934799,1763107834160,-500.0,0.0002992,2]
[393934800,1763107834170,-500.0,0.0002992,2]
[393934801,1763107834179,-500.0,0.0002992,2]
[393934802,1763107834188,-514.8094858,0.0002992,2]
[393934803,1763107834198,-500.0,0.0002992,2]
[393934804,1763107834207,-500.0,0.0002992,2]
[393934805,1763107834219,-500.0,0.0002992,2]
[393934806,1763107834228,-500.0,0.0002992,2]
[393934807,1763107834239,-500.0,0.0002992,2]
[393934808,1763107834249,-500.0,0.0002992,2]
[393934809,1763107834258,-216.45892618,0.0002992,2]
[393934810,1763107834268,-4756.16970281,0.0002992,2]
[393934811,1763107834277,-4756.16970281,0.0002992,2]
[393934812,1763107834287,-4756.16970281,0.0002992,2]
[393934813,1763107834296,-4756.16970281,0.0002992,2]
[393934814,1763107834308,-4756.16970281,0.0002992,2]
[393934815,1763107834318,-4756.16970281,0.0002992,2]
[393934816,1763107834328,-4756.16970281,0.0002992,2]
[393934817,1763107834337,-4756.16970281,0.0002992,2]
[393934818,1763107834347,-4756.16970281,0.0002992,2]
[393934819,1763107834356,-4756.16970281,0.0002992,2]
[393934820,1763107834365,-1000.0,0.00029921,5]
[393934821,1763107834374,-1000.0,0.00029921,2]
[393934822,1763107834385,-500.0,0.00029921,5]
[393934823,1763107834395,-1000.0,0.00029921,5]
[393934824,1763107834404,-1000.0,0.00029921,5]
[393934825,1763107834414,-509.49312622,0.00029921,5]
[393934826,1763107834423,-4622.92739742,0.00029962,2]
[393934827,1763107834433,-4898.25835808,0.00029969,2]
[393934828,1763107834442,-1200.0,0.00029971,2]
[393934829,1763107834452,-500.0,0.00029973,5]
[393934830,1763107834462,-500.0,0.00029973,5]
[393934831,1763107834471,-500.0,0.00029973,5]
[393934832,1763107834480,-500.0,0.00029973,5]
[393934833,1763107834490,-500.0,0.00029973,5]
[393934834,1763107834499,-500.0,0.00029973,5]
[393934835,1763107834509,-500.0,0.00029973,5]
[393934836,1763107834518,-500.0,0.00029973,5]
[393934837,1763107834527,-500.0,0.00029973,5]
[393934838,1763107834536,-502.77286911,0.00029973,5]
[393934839,1763107834545,-500.0,0.00029973,5]
[393934840,1763107834555,-500.0,0.00029973,5]
[393934841,1763107834565,-500.0,0.00029973,5]
[393934842,1763107834575,-500.0,0.00029973,5]
[393934843,1763107834584,-500.0,0.00029973,5]
[393934844,1763107834593,-500.0,0.00029973,5]
[393934845,1763107834603,-502.18649987,0.00029973,5]
[393934846,1763107834613,-486.46322338,0.00029973,5]
[393934847,1763107834622,-500.0,0.00029973,5]
[393934848,1763107834631,-150.0,0.00029973,5]
[393934849,1763107834640,-500.0,0.00029973,5]
[393934850,1763107834650,-500.0,0.00029973,5]
[393934851,1763107834660,-500.0,0.00029973,5]
[393934852,1763107834669,-249.13397588,0.00029973,5]
[393934853,1763107834678,-500.0,0.00029973,5]
[393934854,1763107834687,-500.0,0.00029973,5]
[393934855,1763107834786,-500.0,0.00029973,5]
[393934856,1763107834795,-162.72605843,0.00029973,5]
[393934857,1763107834805,-500.0,0.00029973,5]
[393934858,1763107834814,-500.0,0.00029973,5]
[393934859,1763107834824,-500.0,0.00029973,5]
[393934860,1763107834834,-444.49642386,0.00029973,5]
[393934861,1763107834844,-500.0,0.00029973,5]
[393934862,1763107834854,-500.0,0.00029973,5]
[393934863,1763107834863,-500.0,0.00029973,5]
[393934864,1763107834874,-500.0,0.00029973,5]
[393934865,1763107834883,-500.0,0.00029973,5]
[393934866,1763107834895,-306.82410471,0.00029973,5]
[393934867,1763107834904,-511.46353982,0.00029973,5]
[393934868,1763107834914,-505.70416437,0.00029973,5]
[393934869,1763107834925,-356.47399863,0.00029973,3]
[393934870,1763107834934,-500.0,0.00029973,5]
[393934871,1763107834945,-151.0,0.00029973,7]
[393934872,1763107834954,-151.0,0.00029973,7]
[393934873,1763107834964,-151.0,0.00029973,7]
[393934874,1763107834974,-151.0,0.00029973,7]
[393934875,1763107834985,-151.0,0.00029973,7]
[393934876,1763107834998,-500.0,0.00029989,20]
[393934877,1763107835009,-466.64339161,0.00029989,20]
[393934878,1763107835020,-501.89,0.00029989,2]
[393934879,1763107835030,-1465.56818388,0.00029991,2]
[393934880,1763107835041,-1500.0,0.00030468,5]
[393934881,1763107835052,-1500.0,0.00030468,5]
[393934882,1763107835062,-1500.0,0.00030468,5]
[393934883,1763107835074,-1000.0,0.00030521,5]
[393934884,1763107835084,-481.89160395,0.00030521,5]
[393934885,1763107835095,-500.0,0.00030521,5]
[393934886,1763107835106,-1000.0,0.00030521,5]
[393934887,1763107835117,-1000.0,0.00030521,5]
[393934888,1763107835127,-427.94698618,0.00030521,5]
[393934889,1763107835138,-1000.0,0.00030521,5]
[393934890,1763107835149,-1000.0,0.00030521,5]
[393934891,1763107835160,-1000.0,0.00030521,5]
[393934892,1763107835172,-1000.0,0.00030521,5]
[393934893,1763107835182,-1000.0,0.00030521,5]
[393934894,1763107835193,-1007.97756395,0.00030521,5]
[393934895,1763107835205,-1000.0,0.00030521,5]
[393934896,1763107835217,-1000.0,0.00030521,5]
[393934897,1763107835228,-250.0,0.00030521,5]
[393934898,1763107835238,-1000.0,0.00030521,5]
[393934899,1763107835252,-1000.0,0.00030521,5]
[393934900,1763107835262,-1001.03429991,0.00030521,5]
[393934901,1763107835272,-1000.0,0.00030521,5]
[393934902,1763107835282,-1000.0,0.00030521,5]
[393934903,1763107835291,-1000.0,0.00030521,5]
[393934904,1763107835301,-1000.0,0.00030521,5]
[393934905,1763107835314,-1000.0,0.00030521,5]
[393934906,1763107835323,-505.98800299,0.00030521,5]
[393934907,1763107835333,-517.06869047,0.00030521,5]
[393934908,1763107835343,-1000.0,0.00030521,5]
[393934909,1763107835353,-868.99360965,0.00030521,5]
[393934910,1763107835363,-1000.0,0.00030521,5]
[393934911,1763107835373,-1000.0,0.00030521,5]
[393934912,1763107835384,-730.79248641,0.00030521,5]
[393934913,1763107835394,-150.0,0.00030551,2]
[393934914,1763107835403,-500.0,0.00030679,5]
[393934915,1763107835413,-607.4706221,0.00030732,2]
[393934916,1763107835422,-215.35113294,0.00030802,2]
[393934917,1763107835432,-387.63203929,0.00030802,2]
[393934918,1763107835441,-770.48789957,0.00030863,2]
[393934919,1763107835451,-500.0,0.00030873,5]
[393934920,1763107835460,-500.0,0.00030873,5]
[393934921,1763107835469,-508.61942242,0.00030873,5]
[393934922,1763107835479,-500.0,0.00030873,5]
[393934923,1763107835488,-500.0,0.00030873,5]
[393934924,1763107835501,-500.0,0.00030873,5]
[393934925,1763107835510,-500.68882425,0.00030873,5]
[393934926,1763107835519,-500.0,0.00030873,5]
[393934927,1763107835528,-500.0,0.00030873,5]
[393934928,1763107835537,-344.45287175,0.00030873,5]
[393934929,1763107835547,-502.60192004,0.00030873,5]
[393934930,1763107835556,-469.77389297,0.00030873,5]
[393934931,1763107835564,-500.0,0.00030873,5]
[393934932,1763107835575,-500.0,0.00030873,5]
[393934933,1763107835585,-500.0,0.00030873,5]
[393934934,1763107835595,-250.0,0.00030873,5]
[393934935,1763107835605,-637.75307896,0.00030973,5]
[393934936,1763107835614,-427.84625223,0.00030973,5]
[393934937,1763107835623,-500.0,0.00030973,5]
[393934938,1763107835632,-500.0,0.00030973,5]
[393934939,1763107835642,-500.0,0.00030973,5]
[393934940,1763107835662,-500.0,0.00030973,5]
[393934941,1763107835671,-500.0,0.00030973,5]
[393934942,1763107835682,-500.0,0.00030973,5]
[393934943,1763107835692,-500.0,0.00030973,5]
[393934944,1763107835702,-500.0,0.00030973,5]
[393934945,1763107835712,-151.0,0.00030973,31]
[393934946,1763107835721,-327.255938,0.00030973,31]
[393934947,1763107835731,-327.255938,0.00030973,31]
[393934948,1763107835740,-327.255938,0.00030973,31]
[393934949,1763107835752,-327.255938,0.00030973,31]
[393934950,1763107835762,-172.249335,0.00030973,31]
[393934951,1763107835771,-500.0,0.00030977,20]
[393934952,1763107835780,-623.92920599,0.00030977,20]
[393934953,1763107835790,-507.83987488,0.00030978,20]
[393934954,1763107835799,-1540.97579914,0.0003098,2]
[393934955,1763107835809,-159.23858,0.0003099,31]
[393934956,1763107835818,-191.693247,0.0003099,31]
[393934957,1763107835827,-151.0,0.0003099,31]
[393934958,1763107835837,-151.0,0.0003099,31]
[393934959,1763107835846,-151.0,0.0003099,31]
[393934960,1763107835856,-151.0,0.0003099,31]
[393934961,1763107835865,-1000.0,0.00031016,5]
[393934962,1763107835875,-1000.0,0.00031016,5]
[393934963,1763107835886,-1500.0,0.00031068,5]
[393934964,1763107835897,-1500.0,0.00031068,5]
[393934965,1763107835907,-1006.68721451,0.00031068,5]
[393934966,1763107835917,-350.0,0.00031068,5]
[393934967,1763107835927,-767.67130376,0.00031227,5]
[393934968,1763107835937,-420.0,0.00031276,2]
[393934969,1763107835946,-1200.0,0.000314,3]
[393934970,1763107835955,-770.48789957,0.00031411,2]
[393934971,1763107835965,-1000.0,0.00031421,5]
[393934972,1763107835974,-1000.0,0.00031421,5]
[393934973,1763107835984,-1001.5787381,0.00031421,5]
[393934974,1763107835997,-1000.0,0.00031421,5]
[393934975,1763107836006,-1000.0,0.00031421,5]
[393934976,1763107836015,-1000.0,0.00031421,5]
[393934977,1763107836025,-1000.0,0.00031421,5]
[393934978,1763107836035,-1000.0,0.00031421,5]
[393934979,1763107836044,-1000.0,0.00031421,5]
[393934980,1763107836054,-231.0,0.00031429,2]
[393934981,1763107836063,-1000.0,0.00031521,5]
[393934982,1763107836073,-1000.0,0.00031521,5]
[393934983,1763107836082,-1000.0,0.00031521,5]
[393934984,1763107836092,-1000.0,0.00031521,5]
[393934985,1763107836101,-1000.0,0.00031521,5]
[393934986,1763107836111,-1104.55241685,0.00031521,5]
[393934987,1763107836120,-182.37816442,0.00031521,5]
[393934988,1763107836129,-279.86785085,0.00031521,5]
[393934989,1763107836139,-151.0,0.00031521,31]
[393934990,1763107836149,-503.465344,0.00031521,31]
[393934991,1763107836158,-503.465344,0.00031521,31]
[393934992,1763107836168,-503.465344,0.00031521,31]
[393934993,1763107836178,-503.465344,0.00031521,31]
[393934994,1763107836187,-703.95144259,0.00031616,5]
[393934995,1763107836196,-1000.0,0.00031616,5]
[393934996,1763107836206,-450.0,0.00031616,5]
[393934997,1763107836215,-160.014457,0.00031718,2]
[393934998,1763107836227,-819.02271888,0.000318,2]
[393934999,1763107836237,-180.05022539,0.00031847,2]
[393935000,1763107836248,-500.0,0.00031873,5]
[393935001,1763107836257,-7704.8789957,0.00031873,2]
[393935002,1763107836266,-150.0,0.00031879,2]
[393935003,1763107836276,-153.193271,0.00031883,31]
[393935004,1763107836285,-151.677719,0.00031883,31]
[393935005,1763107836295,-503.465344,0.00031883,31]
[393935006,1763107836305,-503.465344,0.00031883,31]
[393935007,1763107836318,-503.465344,0.00031883,31]
[393935008,1763107836328,-503.465344,0.00031883,31]
[393935009,1763107836338,-151.0,0.00031883,31]
[393935010,1763107836348,-327.255938,0.00031883,31]
[393935011,1763107836357,-327.255938,0.00031883,31]
[393935012,1763107836367,-327.255938,0.00031883,31]
[393935013,1763107836376,-327.255938,0.00031883,31]
[393935014,1763107836387,-151.0,0.00031883,31]
[393935015,1763107836399,-151.0,0.00031883,31]
[393935016,1763107836409,-151.0,0.00031883,31]
[393935017,1763107836419,-151.0,0.00031883,31]
[393935018,1763107836430,-777000.0,0.00031883,2]
[393935019,1763107836440,-160.014457,0.00031947,2]
[393935020,1763107836450,-1500.0,0.00031968,5]
[393935021,1763107836461,-1500.0,0.00031968,5]
[393935022,1763107836471,-500.0,0.00031973,5]
[393935023,1763107836482,-500.0,0.00031973,5]
[393935024,1763107836494,-500.0,0.00031973,5]
[393935025,1763107836503,-159.36727858,0.00031973,5]
[393935026,1763107836512,-180.0,0.00031983,2]
[393935027,1763107836522,-162.73168922,0.00031983,2]
[393935028,1763107836531,-3054.38308402,0.00032056,2]
[393935029,1763107836541,-1500.0,0.00032068,5]
[393935030,1763107836551,-388.92113704,0.00032068,5]
[393935031,1763107836563,-550.0,0.00032164,5]
[393935032,1763107836574,-160.014457,0.00032175,2]
[393935033,1763107836585,-165.96,0.000323,7]
[393935034,1763107836595,-167.148454,0.0003242,31]
[393935035,1763107836605,-327.255938,0.0003242,31]
[393935036,1763107836615,-327.255938,0.0003242,31]
[393935037,1763107836624,-327.255938,0.0003242,31]
[393935038,1763107836633,-327.255938,0.0003242,31]
[393935039,1763107836643,-503.465344,0.00032421,31]
[393935040,1763107836653,-503.465344,0.00032421,31]
[393935041,1763107836663,-503.465344,0.00032421,31]
[393935042,1763107836672,-503.465344,0.00032421,31]
[393935043,1763107836682,-504.00738942,0.00032473,2]
[393935044,1763107836691,-264.17501916,0.00032473,5]
[393935045,1763107836701,-3054.38308402,0.0003249,2]
[393935046,1763107836711,-1488.75300028,0.00032516,5]
[393935047,1763107836720,-1841.11842229,0.00032516,5]
[393935048,1763107836730,-1009.10364879,0.00032521,5]
[393935049,1763107836740,-152.139,0.00032562,32]
[393935050,1763107836752,-646.45108533,0.00032616,5]
[393935051,1763107836762,-300.0,0.00032622,30]
[393935052,1763107836772,-300.0,0.00032622,30]
[393935053,1763107836782,-300.0,0.00032622,30]
[393935054,1763107836793,-709.59719238,0.00032712,5]
[393935055,1763107836803,-3054.38308404,0.00032799,2]
[393935056,1763107836814,-541.3619692,0.00032831,2]
[393935057,1763107836824,-18410.9114408,0.00032844,2]
[393935058,1763107836835,-151.0,0.00032873,7]
[393935059,1763107836846,-230.818372,0.00032877,31]
[393935060,1763107836856,-151.0,0.00032877,30]
[393935061,1763107836867,-151.0,0.00032877,30]
[393935062,1763107836878,-237.041548,0.00032877,30]
[393935063,1763107836888,-4764.91,0.000329,14]
[393935064,1763107836898,-304.94,0.000329,30]
[393935065,1763107836907,-2133.45,0.000329,14]
[393935066,1763107836917,-180.07081656,0.000332,117]
[393935067,1763107836926,-150.0,0.00033207,2]
[393935068,1763107836935,-258.0,0.00033429,120]
[393935069,1763107836945,-587.0,0.00033744,2]
[393935070,1763107836954,-150.0,0.00034535,2]
[393935071,1763107836963,-2000.0,0.00035205,7]
[393935072,1763107836972,-285.0,0.00035429,120]
[393935073,1763107836982,-413.0,0.0003581,2]
[393935074,1763107836991,-150.0,0.00035864,2]
[393935075,1763107837006,-158.2,0.00036215,2]
[393935076,1763107837016,-150.0,0.00036229,2]
[393935077,1763107837026,-629.0,0.00036229,2]
[393935078,1763107837036,-2161.0,0.00036229,2]
[393935079,1763107837045,-987.0,0.00036229,2]
[393935080,1763107837055,-823.0,0.00036406,2]
[393935081,1763107837065,-503.465344,0.00036526,31]
[393935082,1763107837074,-503.465344,0.00036526,31]
[393935083,1763107837084,-503.465344,0.00036526,31]
[393935084,1763107837093,-503.465344,0.00036526,31]
[393935085,1763107837104,-151.0,0.00036526,31]
[393935086,1763107837114,-151.0,0.00036526,31]
[393935087,1763107837124,-151.0,0.00036526,31]
[393935088,1763107837134,-151.0,0.00036526,31]
[393935089,1763107837144,-250.801088,0.00036526,31]
[393935090,1763107837153,-327.255938,0.00036543,31]
[393935091,1763107837163,-327.255938,0.00036543,31]
[393935092,1763107837172,-327.255938,0.00036543,31]
[393935093,1763107837182,-327.255938,0.00036543,31]
[393935094,1763107837191,-18410.9114408,0.00036543,2]
[393935095,1763107837202,-150.0,0.00036573,5]
[393935096,1763107837212,-2550.05938469,0.00036821,2]
[393935097,1763107837221,-541.3619692,0.00036893,2]
[393935098,1763107837232,-303.73057483,0.00037121,5]
[393935099,1763107837244,-150.0,0.00037158,2]
[393935100,1763107837254,-312.0,0.00037429,120]
[393935101,1763107837263,-819.02271888,0.00037497,2]
[393935102,1763107837273,-207.77977938,0.00037497,2]
[393935103,1763107837283,-200.0,0.00038,120]
[393935104,1763107837292,-200.0,0.00038,120]
[393935105,1763107837303,-600.0,0.0003817,30]
[393935108,1763107837408,-2133.45,0.000383,14]
[393935110,1763107837417,-248.9196951,0.00038356,2]
[393935111,1763107837427,-304.94,0.000386,30]
[393935112,1763107837435,-413.0,0.0003881,2]
[393935113,1763107837444,-203.0,0.0003892,120]
[393935114,1763107837453,-200.0,0.00039,120]
[393935115,1763107837463,-150.0,0.00039229,2]
[393935116,1763107837472,-629.0,0.00039229,2]
[393935117,1763107837481,-2161.0,0.00039229,2]
[393935118,1763107837490,-551.484,0.00039229,2]
[393935119,1763107837501,-1152.0,0.00039279,5]
[393935120,1763107837511,-4764.91,0.000393,14]
[393935121,1763107837520,-164.8713119,0.00039373,30]
[393935122,1763107837530,-417.0,0.000394,120]
[393935123,1763107837539,-339.0,0.0003943,120]
[393935124,1763107837549,-10000.0,0.000395,2]
[393935125,1763107837558,-612.43328055,0.000396,120]
[393935126,1763107837567,-166.26373965,0.000396,120]
[393935127,1763107837576,-231.083211,0.00039654,2]
[393935128,1763107837585,-2000.0,0.00039772,20]
[393935129,1763107837594,-511.35977295,0.00039931,15]
[393935130,1763107837603,-1734.15496958,0.0004,120]
[393935131,1763107837612,-1393.44548515,0.0004,120]
[393935132,1763107837621,-26409.39005066,0.0004,120]
[393935133,1763107837630,-1221.0633068,0.0004,120]
[393935134,1763107837639,-428.97928207,0.0004,120]
[393935135,1763107837648,-276.2447194,0.0004,10]
[393935136,1763107837657,-55990.02458504,0.0004,30]
[393935137,1763107837666,-20043.41928171,0.0004,2]
[393935138,1763107837675,-160.0,0.0004,120]
[393935139,1763107837684,-508.0,0.0004,2]
[393935140,1763107837693,-154.17176641,0.0004,2]
[393935141,1763107837701,-200.0,0.0004,120]
[393935142,1763107837710,-503.465344,0.0004,120]
[393935143,1763107837719,-503.465344,0.0004,120]
[393935144,1763107837729,-503.465344,0.0004,120]
[393935145,1763107837739,-503.465344,0.0004,120]
[393935146,1763107837750,-151.0,0.0004,120]
[393935147,1763107837759,-327.255938,0.0004,120]
[393935148,1763107837768,-327.255938,0.0004,120]
[393935149,1763107837777,-327.255938,0.0004,120]
[393935150,1763107837786,-327.255928,0.0004,120]
[393935151,1763107837795,-151.0,0.0004,120]
[393935152,1763107837806,-151.0,0.0004,120]
[393935153,1763107837816,-151.0,0.0004,120]
[393935154,1763107837827,-150.4,0.00040036,120]
[393935155,1763107837836,-191.2434578,0.00040122,30]
[393935156,1763107837845,-680.2858473,0.00040122,30]
[393935157,1763107837854,-191.2434578,0.00040122,30]
[393935158,1763107837863,-191.2434578,0.00040122,30]
[393935159,1763107837872,-593.4565077,0.00040122,30]
[393935160,1763107837881,-191.2434578,0.00040122,30]
[393935161,1763107837892,-593.4565077,0.00040122,30]
[393935162,1763107837901,-593.4565077,0.00040122,30]
[393935163,1763107837913,-593.4565077,0.00040122,30]
[393935164,1763107837923,-593.4565077,0.00040122,30]
[393935165,1763107837934,-382.1124292,0.00040122,30]
[393935166,1763107837943,-593.4565077,0.00040122,30]
[393935167,1763107837953,-150.4,0.00040136,120]
[393935168,1763107837962,-150.4,0.00040236,120]
[393935169,1763107837971,-18410.9114408,0.00040243,2]
[393935170,1763107837979,-171.76544108,0.00040273,5]
[393935171,1763107837989,-150.4,0.00040336,120]
[393935172,1763107838001,-150.4,0.00040436,120]